bitfinex-derivatives/quotes_SOLF0:USTF0_20260117
["timestamp","ask_amount","ask_price","bid_price","bid_amount"]
[1768636310741,1.7369323,143.79,143.74,9.53377308]
[1768636311641,4.61919504,143.8,143.74,9.53377308]
[1768636311840,4.61919504,143.8,143.75,3.18282091]
[1768636313847,2.88172354,143.79,143.74,6.30815965]
[1768636314044,1.7369323,143.78,143.74,6.30815965]
[1768636314950,1.7369323,143.78,143.74,0.04475965]
[1768636315353,4.61686649,143.79,143.74,0.04475965]
[1768636316450,2.88172354,143.78,143.74,0.04475965]
[1768636316855,4.61686649,143.77,143.74,0.04475965]
[1768636317444,4.61686649,143.77,143.71,3.18282091]
[1768636317740,4.61686649,143.77,143.74,0.04382029]
[1768636322754,2.88172354,143.77,143.74,0.04382029]
[1768636328568,2.88172353,143.79,143.74,0.04382029]
[1768636337272,9.14302353,143.79,143.74,0.04382029]
[1768636338075,2.88172353,143.78,143.74,0.04382029]
[1768636347070,10.87876648,143.78,143.71,8.65161977]
[1768636347275,1.73514295,143.76,143.71,8.65161977]
[1768636347578,4.61887799,143.76,143.7,17.93873642]
[1768636349990,0.04393546,143.74,143.7,17.93873642]
[1768636352186,0.04393546,143.74,143.71,8.65161977]
[1768636352683,0.04393546,143.74,143.7,17.93873642]
[1768636352880,0.04393546,143.74,143.71,8.65161977]
[1768636354587,0.04393546,143.74,143.7,17.93873642]
[1768636354787,0.04393546,143.74,143.71,8.65161977]
[1768636355586,0.04393546,143.74,143.71,11.70894283]
[1768636355790,10.88019325,143.8,143.72,3.05732306]
[1768636355990,2.8838503,143.79,143.72,3.05732306]
[1768636356785,2.8838503,143.79,143.73,3.05732306]
[1768636357589,2.8838503,143.79,143.75,0.04392195]
[1768636357978,9.1452503,143.79,143.75,0.04392195]
[1768636363791,6.2614,143.79,143.75,3.10124501]
[1768636364787,6.2614,143.79,143.75,0.04392195]
[1768636366190,9.1452503,143.79,143.75,0.04392195]
[1768636378899,9.14636516,143.78,143.75,0.04392195]
[1768636379106,2.88466516,143.77,143.73,8.65161977]
[1768636386906,2.88466516,143.77,143.72,11.63691403]
[1768636395706,2.88466516,143.77,143.72,17.90121403]
[1768636398014,2.88466516,143.77,143.72,9.24959426]
[1768636399012,0.04405296,143.78,143.72,9.24959426]
[1768636405920,6.30585296,143.78,143.72,2.98529426]
[1768636406218,9.18962285,143.78,143.72,2.98529426]
[1768636407419,2.88376989,143.77,143.72,2.98529426]
[1768636417225,2.88576958,143.76,143.7,16.1280757]
[1768636417430,2.88576958,143.76,143.7,3.11962089]
[1768636417632,4.62085141,143.76,143.7,3.11962089]
[1768636418532,10.88345141,143.76,143.7,3.11962089]
[1768636419033,0.04438759,143.74,143.7,3.11962089]
[1768636423533,0.04438759,143.74,143.67,16.1280757]
[1768636423534,4.6208514,143.73,143.67,16.1280757]
[1768636423733,0.04438759,143.74,143.58,98.74705152]
[1768636423734,1.73508183,143.71,143.65,3.11962089]
[1768636424536,4.6208514,143.71,143.65,3.11962089]
[1768636424735,6.2646,143.72,143.65,3.11962089]
[1768636425935,6.2646,143.72,143.66,3.11962089]
[1768636426238,9.14856957,143.76,143.66,3.11962089]
[1768636426438,9.14856957,143.76,143.67,3.11962089]
[1768636427838,9.14856957,143.76,143.68,3.11962089]
[1768636428039,0.04463651,143.73,143.68,3.11962089]
[1768636430338,0.04463651,143.73,143.68,9.38562089]
[1768636430537,0.04463651,143.73,143.69,3.11962089]
[1768636437761,1.78072413,143.73,143.67,3.10283156]
[1768636442364,0.04463651,143.73,143.67,3.10283156]
[1768636442570,0.04463651,143.73,143.69,3.10283156]
[1768636443264,9.14555334,143.76,143.7,3.10283156]
[1768636443460,10.88164096,143.76,143.7,3.10283156]
[1768636445273,10.88164096,143.76,143.72,0.04550773]
[1768636449872,10.88164096,143.76,143.7,3.10283156]
[1768636451374,0.0451307,143.74,143.7,3.10283156]
[1768636456482,1.73608762,143.76,143.7,3.10283156]
[1768636456677,9.14475334,143.78,143.72,3.10283156]
[1768636456678,1.73608762,143.78,143.72,3.10283156]
[1768636457283,1.73608762,143.78,143.73,3.10283156]
[1768636457884,156.37203958,143.79,143.74,3.10283156]
[1768636458685,10.87974096,143.8,143.75,0.04434249]
[1768636461881,4.61874096,143.8,143.75,0.04434249]
[1768636472695,2.88265334,143.8,143.75,0.04434249]
[1768636472895,4.61874096,143.8,143.75,0.04434249]
[1768636479599,2.88265334,143.8,143.75,0.04434249]
[1768636479796,4.61874096,143.8,143.75,0.04434249]
[1768636480307,2.88265334,143.8,143.75,0.04434249]
[1768636480606,4.61874096,143.8,143.75,0.04434249]
[1768636487211,2.88265334,143.8,143.75,0.04434249]
[1768636508425,2.88265334,143.8,143.75,3.21490743]
[1768636514530,2.88265334,143.8,143.75,0.04434249]
[1768636514730,4.61745196,143.8,143.75,0.04434249]
[1768636514932,2.88201397,143.79,143.75,0.04434249]
[1768636518033,2.88201397,143.79,143.75,8.73571108]
[1768636529639,1.73479862,143.81,143.75,8.73571108]
[1768636529940,4.61603582,143.81,143.75,8.73571108]
[1768636530134,2.8812372,143.8,143.75,8.73571108]
[1768636538547,2.8812372,143.8,143.75,12.02143704]
[1768636548154,7.99519862,143.81,60.105,98.72469277]
[1768636548155,2.88103791,143.76,143.69,242.79948779]
[1768636548449,1.73479862,143.75,143.7,3.28572596]
[1768636548651,4.61583653,143.75,143.7,3.28572596]
[1768636549442,0.04446145,143.74,143.7,3.28572596]
[1768636550042,1.73479862,143.77,143.7,3.28572596]
[1768636550250,10.92179798,143.79,143.7,3.28572596]
[1768636550456,10.92179798,143.79,143.72,3.28572596]
[1768636552764,10.92179798,143.79,143.74,0.04457626]
[1768636556262,2.92435545,143.78,143.74,0.04457626]
[1768636556768,1.73479862,143.77,143.74,0.04457626]
[1768636557361,4.65991655,143.78,143.74,0.04457626]
[1768636558565,2.92435545,143.78,143.74,0.04457626]
[1768636558772,4.65991655,143.78,143.74,0.04457626]
[1768636560967,6.2615,143.79,143.74,3.32862986]
[1768636561166,4.65991655,143.8,143.74,3.32862986]
[1768636562870,2.92435545,143.8,143.74,3.32862986]
[1768636570279,2.92435545,143.8,143.75,3.2840536]
[1768636572079,6.2607,143.81,143.75,3.2840536]
[1768636572380,4.65991655,143.82,143.76,3.2840536]
[1768636578481,4.65991655,143.82,143.78,0.04505188]
[1768636579187,10.91991655,143.82,143.78,0.04505188]
[1768636581580,4.65991655,143.82,143.78,0.04505188]
[1768636593695,2.92435545,143.82,143.78,0.04505188]
[1768636602698,4.65857842,143.84,143.78,9.5327988]
[1768636605204,4.65857842,143.84,143.79,6.2612]
[1768636609101,2.92301732,143.84,143.79,6.2612]
[1768636609306,4.65857842,143.84,143.79,6.2612]
[1768636610398,2.92301732,143.83,143.78,3.2710988]
[1768636610599,1.7355611,143.82,143.78,3.2710988]
[1768636611401,4.65857842,143.82,143.78,0.04505188]
[1768636611706,2.92185055,143.81,143.78,0.04505188]
[1768636630126,2.92185055,143.84,143.78,3.13423145]
[1768636631927,2.92185055,143.84,143.79,6.261]
[1768636632730,2.92185055,143.84,143.79,9.35017957]
[1768636643939,4.65675023,143.86,143.79,9.35017957]
[1768636644141,4.65675023,143.86,143.8,9.49749112]
[1768636644840,4.65675023,143.86,143.82,0.04491518]
[1768636650841,2.87746527,143.83,143.78,6.2614]
[1768636652846,2.87746527,143.83,143.77,3.23679112]
[1768636653246,2.87746527,143.83,143.76,6.2624]
[1768636654045,0.04501631,143.81,143.76,6.2624]
[1768636654442,0.04501631,143.81,143.76,9.32818165]
[1768636654940,2.92432667,143.81,143.76,6.2624]
[1768636660051,2.92432667,143.81,143.77,6.2621]
[1768636664354,0.04501631,143.81,143.77,6.2621]
[1768636674470,0.04501631,143.81,143.76,3.06578165]
[1768636675568,0.04501631,143.81,143.76,9.32828165]
[1768636685487,0.04501631,143.81,143.76,3.06578165]
[1768636687182,3.15195111,143.8,143.72,1.7343466]
[1768636687485,3.15195111,143.8,143.71,275.94542843]
[1768636688787,6.2613,143.79,143.71,282.20982843]
[1768636689286,6.2613,143.79,143.72,3.29496623]
[1768636692890,6.2613,143.79,143.72,9.55916623]
[1768636693091,6.2613,143.79,143.73,3.29496623]
[1768636697293,0.04409226,143.77,143.73,3.29496623]
[1768636718311,6.2609,143.8,143.74,3.03835496]
[1768636718712,9.32534071,143.8,143.74,3.03835496]
[1768636720614,9.32534071,143.8,143.76,0.04390861]
[1768636721515,3.06444071,143.79,143.74,3.03835496]
[1768636723719,0.0454057,143.78,143.74,3.03835496]
[1768636729417,0.0454057,143.78,143.72,6.2642]
[1768636729418,3.06444071,143.77,143.72,3.03835496]
[1768636729619,3.06444071,143.77,143.7,248.73410718]
[1768636729620,3.06444071,143.77,143.7,245.50756214]
[1768636730826,9.32664071,143.77,143.7,245.50756214]
[1768636731526,9.32664071,143.77,143.71,3.03835496]
[1768636733028,0.04443818,143.75,143.71,3.03835496]
[1768636740931,3.1758871,143.75,143.69,19.27102843]
[1768636741132,3.1758871,143.75,143.69,3.20525834]
[1768636742835,9.4389871,143.75,143.69,3.20525834]
[1768636749238,6.2635,143.74,143.69,3.20525834]
[1768636749737,9.39494892,143.74,143.69,3.20525834]
[1768636751333,9.39494892,143.74,143.68,263.04]
[1768636751540,9.39494892,143.74,143.68,266.24525834]
[1768636752441,9.39494892,143.74,143.68,3.20525834]
[1768636752939,3.13144892,143.74,143.68,3.20525834]
[1768636759545,9.39504892,143.74,143.68,3.20525834]
[1768636760543,6.2636,143.74,143.68,3.20525834]
[1768636760748,9.39564892,143.73,143.68,3.20525834]
[1768636761642,9.25753657,143.75,143.68,3.20525834]
[1768636762048,0.0450911,143.72,143.68,3.20525834]
[1768636767251,0.0450911,143.72,143.66,6.2668]
[1768636767449,0.0450911,143.72,143.66,9.55235189]
[1768636768145,0.0450911,143.72,143.67,3.28555189]
[1768636770553,9.30372767,143.72,143.65,266.40555189]
[1768636770745,2.99423657,143.71,143.65,266.40555189]
[1768636771145,2.99423657,143.71,143.65,3.28555189]
[1768636775960,9.25923657,143.71,143.65,3.28555189]
[1768636776561,3.16518879,143.7,143.65,3.28555189]
[1768636782163,3.16518879,143.69,143.62,3.21857822]
[1768636782559,3.16518879,143.71,143.63,3.21857822]
[1768636783362,0.04398259,143.68,143.63,3.21857822]
[1768636783751,0.04398259,143.68,143.64,6.2677]
[1768636783958,0.04398259,143.68,143.65,3.21857822]
[1768636789366,0.04398259,143.68,143.62,3.21857822]
[1768636789865,3.16518879,143.69,143.62,3.21857822]
[1768636790263,3.16518879,143.69,143.64,9.48627822]
[1768636790463,4.90079855,143.71,143.64,9.48627822]
[1768636790659,0.04433185,143.67,143.64,9.48627822]
[1768636793570,4.90079855,143.71,143.65,9.5524769]
[1768636794570,3.25016142,143.7,143.63,3.2851769]
[1768636795868,3.25016142,143.7,143.64,6.2677]
[1768636796673,3.25016142,143.7,143.66,0.04501641]
[1768636799270,1.73560976,143.7,143.66,0.04501641]
[1768636799475,3.25016142,143.69,143.66,0.04501641]
[1768636800171,381.4886,143.75,143.66,0.04501641]
[1768636800172,6.2642,143.73,143.66,0.04501641]
[1768636800376,3.25016142,143.72,143.66,0.04501641]
[1768636800770,3.25016142,143.72,143.65,3.2851769]
[1768636801881,3.25016142,143.72,143.64,6.2678]
[1768636802575,3.25016142,143.71,143.62,6.2683]
[1768636802772,3.25016142,143.71,143.62,3.2851769]
[1768636802973,3.25016142,143.71,143.59,3.2851769]
[1768636803783,3.25016142,143.68,143.61,3.2851769]
[1768636805181,3.25016142,143.68,143.61,9.5541769]
[1768636806889,3.25016142,143.68,143.61,3.2851769]
[1768636807783,3.25016142,143.67,143.58,3.2851769]
[1768636808487,3.25016142,143.67,143.6,3.2851769]
[1768636812385,3.25016142,143.69,143.61,3.2851769]
[1768636813894,3.25016142,143.71,143.62,3.2851769]
[1768636815796,3.25016142,143.71,143.63,3.2851769]
[1768636820703,3.25016142,143.7,143.63,3.2851769]
[1768636830199,3.25016142,143.7,143.64,3.06477508]
[1768636830505,3.20585544,143.72,143.64,3.06477508]
[1768636831903,3.20585544,143.72,143.66,3.17196725]
[1768636840909,3.20585544,143.72,143.66,9.43876725]
[1768636841809,3.20585544,143.72,143.66,6.2668]
[1768636842813,3.20585544,143.72,143.66,9.43876725]
[1768636845010,3.27363413,143.75,143.68,3.17196725]
[1768636845214,148.30439821,143.77,143.68,3.17196725]
[1768636846114,3.27363413,143.77,143.68,3.17196725]
[1768636846816,3.27363413,143.77,143.7,6.2651]
[1768636848309,3.27363413,143.77,143.7,9.43706725]
[1768636849015,3.27363413,143.77,143.71,9.43656725]
[1768636849813,3.27363413,143.77,143.72,3.17196725]
[1768636850716,3.27363413,143.77,143.72,9.43606725]
[1768636851812,3.12722355,143.81,143.73,3.19348254]
[1768636852817,3.12722355,143.81,143.74,9.45678254]
[1768636854118,3.12722355,143.81,143.75,3.19348254]
[1768636855920,3.12722355,143.81,143.76,6.2625]
[1768636856922,3.12722355,143.81,143.75,3.19348254]
[1768636860922,3.12722355,143.81,143.74,6.2631]
[1768636861920,3.12722355,143.81,143.74,9.45658254]
[1768636865527,3.12722355,143.81,143.76,0.04408017]
[1768636869927,9.38772355,143.81,143.76,0.04408017]
[1768636870533,3.12722355,143.79,143.71,3.19348254]
[1768636871027,9.38852355,143.79,143.71,9.45818254]
[1768636871230,9.38852355,143.79,143.72,3.19348254]
[1768636871531,3.12722355,143.79,143.72,3.19348254]
[1768636872833,9.38852355,143.79,143.72,3.19348254]
[1768636873026,3.12722355,143.78,143.72,3.19348254]
[1768636876738,9.38982355,143.76,143.69,3.19348254]
[1768636879436,3.12722355,143.75,143.69,3.19348254]
[1768636880935,3.12722355,143.75,143.69,9.45898254]
[1768636882439,3.12722355,143.75,143.69,3.19348254]
[1768636888737,3.12722355,143.75,143.64,207.99412205]
[1768636888738,3.12722355,143.75,143.65,3.05614781]
[1768636888945,3.11256663,143.74,143.66,3.05614781]
[1768636889942,9.37636663,143.74,143.66,3.05614781]
[1768636890141,3.11256663,143.73,143.66,3.05614781]
[1768636897447,0.04380195,143.71,143.66,3.05614781]
[1768636905244,3.0631832,143.71,143.66,3.05614781]
[1768636909852,0.04380195,143.71,143.66,3.05614781]
[1768636914653,3.04063253,143.71,143.66,3.05614781]
[1768636920460,0.04380195,143.71,143.66,3.05614781]
[1768636920853,9.26013058,143.75,143.66,3.05614781]
[1768636921954,97.3931,143.8,143.66,3.05614781]
[1768636921955,2.99683058,143.73,143.66,3.05614781]
[1768636922554,6.2637,143.74,143.64,2.99215671]
[1768636922555,2.99683058,143.72,143.64,2.99215671]
[1768636922960,2.99683058,143.72,143.6,12.99912205]
[1768636922961,2.99683058,143.72,143.62,2.99215671]
[1768636923263,9.26183058,143.71,143.62,2.99215671]
[1768636923763,2.99683058,143.7,143.62,2.99215671]
[1768636924461,2.99683058,143.72,143.63,2.99215671]
[1768636926770,2.99683058,143.72,143.64,2.99215671]
[1768636929268,2.99683058,143.72,143.67,0.04388228]
[1768636929465,2.99683058,143.71,143.67,0.04388228]
[1768636935566,9.26083058,143.73,143.67,0.04388228]
[1768636936067,2.99683058,143.73,143.67,0.04388228]
[1768636937776,2.99683058,143.73,143.67,3.03603899]
[1768636939889,2.99683058,143.75,143.68,9.25815671]
[1768636940081,2.99683058,143.75,143.69,2.99215671]
[1768636941887,2.99683058,143.75,143.69,9.25765671]
[1768636943296,2.99585148,143.77,143.71,3.25028076]
[1768636943588,2.99585148,143.81,143.71,3.25028076]
[1768636944789,2.99585148,143.8,143.72,9.51448076]
[1768636945590,2.99585148,143.8,143.73,3.25028076]
[1768636946086,2.99585148,143.82,143.74,3.25028076]
[1768636946991,2.99585148,143.82,143.74,9.51338076]
[1768636947193,2.99585148,143.82,143.75,3.25028076]
[1768636947387,2.99585148,143.84,143.75,3.25028076]
[1768636948897,2.99585148,143.84,143.76,3.25028076]
[1768636953598,9.25505148,143.84,143.76,3.25028076]
[1768636954102,3.09311752,143.83,143.76,3.25028076]
[1768636957193,3.09311752,143.82,143.76,3.25028076]
[1768636958303,3.09311752,143.82,143.73,6.2636]
[1768636958304,3.09311752,143.82,143.74,2.99872538]
[1768636958797,3.09311752,143.81,143.74,2.99872538]
[1768636959197,3.09311752,143.8,143.74,2.99872538]
[1768636959697,3.09311752,143.82,143.74,2.99872538]
[1768636960000,3.09311752,143.82,143.75,2.99872538]
[1768636961503,3.09311752,143.82,143.77,0.04382699]
[1768636964708,3.09311752,143.82,143.73,2.99872538]
[1768636966010,9.35411752,143.8,143.73,2.99872538]
[1768636972009,3.04967772,143.79,143.73,2.99872538]
[1768636980509,3.04967772,143.79,143.72,6.2642]
[1768636980910,3.04967772,143.79,143.72,9.3207758]
[1768636983112,3.04967772,143.79,143.73,3.0565758]
[1768636984313,0.043765,143.77,143.73,3.0565758]
[1768636988412,0.043765,143.77,143.69,221.40321338]
[1768636988611,3.09344272,143.77,143.69,3.0565758]
[1768636989812,0.043765,143.77,143.72,3.0565758]
[1768636990314,3.04967772,143.79,143.72,3.0565758]
[1768636990512,9.31107772,143.79,143.72,3.0565758]
[1768636992510,9.31107772,143.79,143.73,3.0565758]
[1768637000025,0.0438624,143.77,143.73,3.0565758]
[1768637014532,242.42007951,143.83,143.73,3.0565758]
[1768637014533,3.30679209,143.8,143.73,3.0565758]
[1768637015535,6.2616,143.79,143.73,3.0565758]
[1768637019744,6.2616,143.79,143.75,0.04379594]
[1768637020744,9.56839209,143.79,143.75,0.04379594]
[1768637021250,3.30679209,143.78,143.75,0.04379594]
[1768637027351,9.56859209,143.78,143.75,0.04379594]
[1768637027542,3.30679209,143.77,143.71,9.48435778]
[1768637030155,9.56899209,143.77,143.71,3.21985778]
[1768637032846,3.22395703,143.76,143.7,19.26422205]
[1768637033047,3.22395703,143.76,143.7,6.2651]
[1768637033444,3.22395703,143.76,143.7,9.24324904]
[1768637037352,3.22395703,143.76,143.71,2.97814904]
[1768637039051,3.22395703,143.78,143.71,2.97814904]
[1768637040354,3.22395703,143.8,143.71,2.97814904]
[1768637040951,6.2618,143.78,143.71,2.97814904]
[1768637041255,9.48575703,143.78,143.71,2.97814904]
[1768637041447,9.48505703,143.8,143.71,2.97814904]
[1768637041649,9.48505703,143.8,143.71,15.97727109]
[1768637041855,9.48505703,143.8,143.72,2.97814904]
[1768637042157,9.48505703,143.8,143.71,12.99912205]
[1768637042158,3.22395703,143.8,143.73,2.97814904]
[1768637043751,3.22395703,143.8,143.73,6.2636]
[1768637043959,3.22395703,143.8,143.74,2.97814904]
[1768637044156,6.2601,143.82,143.74,2.97814904]
[1768637044359,9.48405703,143.82,143.74,2.97814904]
[1768637044961,3.22395703,143.81,143.74,2.97814904]
[1768637046059,0.04380952,143.79,143.74,2.97814904]
[1768637050162,3.26776655,143.79,143.74,2.97814904]
[1768637050365,3.26776655,143.79,143.73,6.2636]
[1768637050556,3.26776655,143.79,143.73,9.24174904]
[1768637050759,3.26776655,143.79,143.74,2.97814904]
[1768637061466,0.04380952,143.79,143.74,2.97814904]
[1768637066979,3.02841263,143.79,143.71,22.5092227]
[1768637067183,3.02841263,143.79,143.71,3.24570065]
[1768637068171,9.24680311,143.77,143.71,3.24570065]
[1768637068677,2.98460311,143.77,143.71,3.24570065]
[1768637068876,2.98460311,143.77,143.72,3.24570065]
[1768637069479,9.24620311,143.79,143.72,3.24570065]
[1768637074100,9.24620311,143.79,143.73,3.15227265]
[1768637074497,2.98460311,143.79,143.73,3.15227265]
[1768637077607,2.98460311,143.79,143.74,3.15227265]
[1768637077901,9.30553357,143.81,143.74,3.15227265]
[1768637084209,3.04473357,143.8,143.74,3.15227265]
[1768637086013,0.04383003,143.78,143.74,3.15227265]
[1768637090617,0.04383003,143.78,143.74,9.41567265]
[1768637090922,3.04473357,143.8,143.74,9.41567265]
[1768637093824,3.04473357,143.8,143.76,0.04398147]
[1768637103725,3.27709101,143.79,143.71,12.99912205]
[1768637103916,3.27709101,143.79,143.7,3.24173403]
[1768637104323,3.27709101,143.79,143.74,3.24173403]
[1768637107924,0.04386093,143.78,143.74,3.24173403]
[1768637109127,3.32095194,143.78,143.72,9.50583403]
[1768637123641,3.32095194,143.78,143.73,6.2638]
[1768637124040,3.32095194,143.78,143.73,9.50253939]
[1768637130560,3.10817061,143.77,143.71,3.23873939]
[1768637131754,0.04386093,143.78,143.71,4.97392867]
[1768637132056,0.04386093,143.78,143.72,3.28588645]
[1768637132848,0.04386093,143.78,143.72,9.55008645]
[1768637133057,0.04386093,143.78,143.73,3.28588645]
[1768637138054,0.04386093,143.78,143.73,11.28487573]
[1768637139158,0.04386093,143.78,143.73,9.54968645]
[1768637139354,0.04386093,143.78,143.74,3.28588645]
[1768637139556,3.04210438,143.81,143.75,3.28588645]
[1768637141651,3.04210438,143.81,143.76,3.28588645]
[1768637144963,3.04210438,143.81,143.77,0.04387207]
[1768637160772,3.30149911,143.83,143.77,0.04387207]
[1768637161871,3.30149911,143.82,143.77,0.04387207]
[1768637162972,1.73518928,143.84,143.77,3.12273069]
[1768637162973,5.03668839,143.84,143.77,3.12273069]
[1768637163780,3.30149911,143.83,143.77,3.12273069]
[1768637168378,360.3584,143.88,143.79,3.07885862]
[1768637168379,11.29528839,143.86,143.79,3.07885862]
[1768637168682,1.73518928,143.88,143.8,1.73518928]
[1768637169481,6.2567,143.9,143.82,3.07885862]
[1768637170780,2.6897546,143.89,143.83,7.99256432]
[1768637170971,2.6897546,143.89,143.83,11.07142294]
[1768637176086,2.6897546,143.89,143.85,0.04379714]
[1768637176884,4.42291892,143.89,143.85,0.04379714]
[1768637177083,2.6897546,143.88,143.85,0.04379714]
[1768637185890,2.6897546,143.88,143.82,3.07885862]
[1768637197703,2.6897546,143.88,143.83,3.29534004]
[1768637198207,2.68951307,143.87,143.81,3.29534004]
[1768637199696,2.68951307,143.87,143.82,3.29534004]
[1768637203806,2.68951307,143.87,143.81,9.55574004]
[1768637204007,2.68951307,143.87,143.82,3.29534004]
[1768637220626,0.04382461,143.86,143.82,3.29534004]
[1768637221931,2.73258872,143.86,143.79,17.73204439]
[1768637222227,2.73258872,143.86,143.72,312.10154235]
[1768637222228,2.68876411,143.84,143.77,2.99975802]
[1768637222425,2.68876411,143.83,143.77,2.99975802]
[1768637222630,1.73316432,143.85,143.77,2.99975802]
[1768637222631,4.42192843,143.85,143.78,2.99975802]
[1768637223334,2.68876411,143.84,143.78,2.99975802]
[1768637226230,1.73316432,143.8,143.73,2.99975802]
[1768637226425,97.3608,143.85,143.73,2.99975802]
[1768637226426,1.73316432,143.78,143.73,2.99975802]
[1768637226933,4.42192843,143.78,143.73,2.99975802]
[1768637227127,4.42192843,143.78,143.71,9.26435802]
[1768637229430,4.4244617,143.78,143.71,9.26435802]
[1768637230538,2.68876411,143.78,143.71,11.00005561]
[1768637231335,2.68876411,143.78,143.72,2.99975802]
[1768637235639,8.94936411,143.81,143.73,1.73569759]
[1768637235841,2.68876411,143.81,143.74,2.99975802]
[1768637236028,2.68876411,143.8,143.74,2.99975802]
[1768637236430,2.68876411,143.8,143.73,1.73569759]
[1768637236840,2.68876411,143.8,143.73,7.99939759]
[1768637238640,2.68876411,143.8,143.73,10.99915561]
[1768637243349,2.68876411,143.8,143.73,9.26345802]
[1768637243545,2.68876411,143.8,143.73,10.99915561]
[1768637243844,2.68876411,143.8,143.75,3.17910307]
[1768637245652,0.04379572,143.79,143.75,3.17910307]
[1768637257466,2.73556792,143.79,143.72,6.264]
[1768637257666,2.6917722,143.78,143.72,6.264]
[1768637260960,0.04381022,143.76,143.72,6.264]
[1768637267475,6.2613,143.79,143.73,3.0962136]
[1768637269179,6.2606,143.81,143.74,3.0962136]
[1768637270179,6.2606,143.81,143.75,3.0962136]
[1768637271179,2.6917722,143.82,143.75,3.0962136]
[1768637271379,6.2598,143.83,143.77,3.0962136]
[1768637281507,8.95267,143.82,143.77,3.0962136]
[1768637284600,2.69257,143.82,143.77,3.0962136]
[1768637315033,2.69156986,143.84,143.77,9.3581136]
[1768637316036,2.69156986,143.83,143.77,9.3581136]
[1768637335057,2.69156986,143.83,143.78,3.23658629]
[1768637364279,2.69129585,143.82,143.76,16.20193541]
[1768637364476,2.69129585,143.82,143.76,3.20281336]
[1768637369393,2.69129585,143.82,143.77,3.20281336]
[1768637369692,6.2596,143.83,143.77,3.20281336]
[1768637370496,8.95089585,143.83,143.77,3.20281336]
[1768637375492,2.69129585,143.83,143.77,9.46491336]
[1768637375795,2.69129585,143.83,143.78,3.17548887]
[1768637403117,8.95109585,143.83,143.78,3.17548887]
[1768637404025,100.02317949,143.89,143.8,3.18606046]
[1768637404323,2.69127949,143.87,143.8,3.18606046]
[1768637404912,8.94937949,143.87,143.8,3.18606046]
[1768637406919,2.69127949,143.86,143.8,3.18606046]
[1768637407125,2.69127949,143.85,143.78,3.18606046]
[1768637407817,2.69127949,143.84,143.78,3.18606046]
[1768637414926,2.69127949,143.84,143.75,12.99912205]
[1768637415126,1.73398397,143.83,143.75,3.18606046]
[1768637415431,2.69127949,143.84,143.78,3.18606046]
[1768637416831,8.95057949,143.84,143.78,3.18606046]
[1768637420429,6.2593,143.84,143.78,3.18606046]
[1768637420634,8.94977949,143.86,143.78,3.18606046]
[1768637421036,8.94977949,143.86,143.79,1.73398397]
[1768637421335,8.94977949,143.86,143.79,4.92004443]
[1768637422238,8.94977949,143.86,143.79,3.18606046]
[1768637422734,2.69318661,143.85,143.79,3.18606046]
[1768637430638,6.2585,143.86,143.79,3.18606046]
[1768637430840,6.2585,143.86,143.8,3.28545058]
[1768637431736,8.94835246,143.86,143.8,3.28545058]
[1768637432532,2.68985246,143.85,143.8,3.28545058]
[1768637432737,2.68985246,143.85,143.78,3.28138161]
[1768637433141,2.68985246,143.85,143.78,9.54298161]
[1768637438641,2.68985246,143.84,143.78,3.28138161]
[1768637438840,2.68985246,143.84,143.77,12.99912205]
[1768637438841,2.68985246,143.83,143.76,3.28138161]
[1768637439043,1.73398397,143.82,143.76,3.28138161]
[1768637439249,2.68985246,143.81,143.76,3.28138161]
[1768637440045,2.68985246,143.81,143.74,16.28050366]
[1768637440251,2.68985246,143.81,143.74,3.28138161]
[1768637440753,8.95035246,143.81,143.74,3.28138161]
[1768637441646,2.68985246,143.8,143.74,3.28138161]
[1768637457666,2.68985246,143.8,143.74,5.01536558]
[1768637460672,6.2605,143.81,143.75,3.01417102]
[1768637461371,8.95140234,143.81,143.75,3.01417102]
[1768637463265,8.95080234,143.83,143.77,3.01417102]
[1768637464062,6.2601,143.82,143.77,3.01417102]
[1768637485895,2.69090234,143.83,143.77,3.01417102]
[1768637486802,8.95060234,143.83,143.77,3.01417102]
[1768637487293,8.95126334,143.84,143.78,3.15164445]
[1768637488195,2.69196334,143.84,143.78,3.15164445]
[1768637489705,8.95036334,143.86,143.79,4.88593912]
[1768637491701,8.95036334,143.86,143.8,3.11331298]
[1768637500210,2.69196334,143.86,143.8,3.11331298]
[1768637513820,2.69012754,143.85,143.79,6.2612]
[1768637514018,2.69012754,143.85,143.79,9.30573357]
[1768637515919,2.69012754,143.85,143.8,3.04453357]
[1768637521619,6.2583,143.86,143.8,3.04453357]
[1768637521620,4.42442221,143.87,143.8,3.04453357]
[1768637522319,2.69012754,143.87,143.81,3.04453357]
[1768637523718,6.2576,143.88,143.81,3.04453357]
[1768637527827,8.94772754,143.88,143.81,3.04453357]
[1768637529425,10.68202221,143.88,143.81,3.04453357]
[1768637533328,10.68074537,143.88,143.81,3.04453357]
[1768637535031,10.68074537,143.88,143.82,3.04453357]
[1768637537435,2.69012754,143.87,143.82,3.04453357]
[1768637551351,7.99061783,143.88,143.82,3.04453357]
[1768637552648,10.68192773,143.88,143.82,3.04453357]
[1768637554348,8.9489099,143.88,143.82,3.04453357]